bitfinex-derivatives/quotes_BTCF0:USTF0_20250218
["timestamp","ask_amount","ask_price","bid_price","bid_amount"]
[1739909518437,0.079,94352.0,94351.0,0.58376587]
[1739909518946,0.19079683,94354.0,94353.0,0.2120504]
[1739909520743,0.0726,94371.0,94370.0,0.2120122]
[1739909522547,0.0758,94379.0,94369.0,0.3608]
[1739909522742,0.2120122,94370.0,94369.0,0.3717854]
[1739909523450,0.2120122,94370.0,94361.0,0.00015903]
[1739909523451,0.3608,94372.0,94364.0,0.3608]
[1739909523651,0.2120302,94362.0,94361.0,0.00015903]
[1739909523952,0.5728302,94362.0,94361.0,0.00015903]
[1739909524344,0.2120302,94362.0,94361.0,0.00015903]
[1739909525843,0.2837302,94362.0,94361.0,0.00015903]
[1739909529447,0.2120302,94362.0,94361.0,0.00015903]
[1739909530144,0.436,94372.0,94361.0,0.36095903]
[1739909530350,0.3608,94372.0,94368.0,0.212015]
[1739909530740,0.0734,94377.0,94369.0,0.4338]
[1739909531652,0.212008,94372.0,94369.0,0.4338]
[1739909532348,0.212008,94372.0,94371.0,0.21201]
[1739909533152,0.0734,94377.0,94374.0,0.2120028]
[1739909533351,0.212001,94375.0,94374.0,0.2120028]
[1739909533546,0.0734,94377.0,94376.0,0.2119988]
[1739909534456,0.2853965,94377.0,94376.0,0.2119988]
[1739909535457,0.2853965,94377.0,94376.0,0.2129988]
[1739909536151,0.2853965,94377.0,94376.0,0.22358937]
[1739909536855,0.2853965,94377.0,94376.0,0.01159057]
[1739909537961,0.2853965,94377.0,94376.0,0.22358937]
[1739909538154,0.2853965,94377.0,94376.0,0.22258937]
[1739909540748,0.2853965,94377.0,94376.0,0.01059057]
[1739909540950,0.2853965,94377.0,94375.0,0.212]
[1739909541147,0.2853965,94377.0,94376.0,0.2119988]
[1739909542657,0.2853965,94377.0,94376.0,0.22280792]
[1739909546366,0.2853965,94377.0,94376.0,0.01080912]
[1739909546564,0.0734,94377.0,94369.0,0.4338]
[1739909546760,0.2120122,94370.0,94369.0,0.3608]
[1739909547251,0.2120122,94370.0,94369.0,0.37133243]
[1739909547456,0.2120122,94370.0,94369.0,0.01053243]
[1739909547767,0.3608,94374.0,94365.0,0.25022302]
[1739909547968,0.2120212,94366.0,94365.0,0.25022302]
[1739909548269,0.0763,94369.0,94365.0,0.25022302]
[1739909548456,0.2883149,94369.0,94365.0,0.25022302]
[1739909548865,0.2120149,94369.0,94365.0,0.25022302]
[1739909549365,0.2120149,94369.0,94365.0,0.46224612]
[1739909549962,0.2120149,94369.0,94365.0,0.2120231]
[1739909550268,0.3608,94374.0,94363.0,0.1574]
[1739909550964,0.2120173,94368.0,94363.0,0.3694274]
[1739909551768,0.2120173,94368.0,94364.0,0.2120256]
[1739909552166,0.3608,94374.0,94363.0,0.1574]
[1739909552460,0.0734,94377.0,94369.0,0.2120138]
[1739909552666,0.2853982,94377.0,94366.0,0.3608]
[1739909552967,0.2853982,94377.0,94374.0,0.2120023]
[1739909553267,0.2119995,94376.0,94374.0,0.2120023]
[1739909553855,0.2119995,94376.0,94375.0,0.0785]
[1739909554060,0.0734,94377.0,94375.0,0.2905]
[1739909554260,0.3608,94383.0,94375.0,0.2905]
[1739909554465,0.3608,94383.0,94376.0,0.2900984]
[1739909554663,0.2119965,94377.0,94376.0,0.0781]
[1739909556070,0.211985,94383.0,94379.0,0.2119919]
[1739909556469,0.1463,94389.0,94379.0,0.2119919]
[1739909556665,0.2119898,94380.0,94379.0,0.2119919]
[1739909558272,0.2119898,94380.0,94376.0,0.1522]
[1739909558273,0.1463,94389.0,94376.0,0.1522]
[1739909558472,0.3582697,94389.0,94385.0,0.2119779]
[1739909558666,0.2119719,94388.0,94385.0,0.2119779]
[1739909559166,0.2119763,94386.0,94385.0,0.2119779]
[1739909560673,0.2119798,94385.0,94381.0,0.2119853]
[1739909560865,0.2119798,94385.0,94379.0,0.18817326]
[1739909561061,0.2119798,94385.0,94383.0,0.2119817]
[1739909561665,0.2119798,94385.0,94384.0,0.2119808]
[1739909562276,0.0744,94389.0,94379.0,0.2119914]
[1739909562568,0.2119897,94381.0,94379.0,0.2119914]
[1739909562768,0.2119897,94381.0,94380.0,0.2119898]
[1739909562966,0.2119897,94381.0,94376.0,0.1522]
[1739909562967,0.0744,94389.0,94376.0,0.1522]
[1739909563158,0.2119763,94386.0,94385.0,0.001]
[1739909564161,0.2119763,94386.0,94385.0,0.2129786]
[1739909564570,0.2119763,94386.0,94385.0,0.2119786]
[1739909565569,0.2119763,94386.0,94385.0,0.2129786]
[1739909567469,0.5727763,94386.0,94385.0,0.001]
[1739909571566,0.2119763,94386.0,94385.0,0.001]
[1739909584278,0.0736,94390.0,94379.0,0.2119916]
[1739909584279,0.2119898,94380.0,94379.0,0.2119916]
[1739909584768,0.12967081,94390.0,94376.0,0.0761]
[1739909584969,0.2119841,94383.0,94380.0,0.2119882]
[1739909585169,0.12967081,94390.0,94376.0,0.0761]
[1739909585468,0.2119865,94383.0,94382.0,0.2119814]
[1739909586783,0.2119775,94386.0,94385.0,0.2119775]
[1739909587078,0.2119738,94388.0,94387.0,0.2119723]
[1739909587982,0.2119808,94384.0,94383.0,0.5727819]
[1739909589885,0.2119737,94389.0,94388.0,0.21197]
[1739909590381,0.3608,94391.0,94383.0,0.3608]
[1739909590382,0.3608,94391.0,94389.0,0.2119677]
[1739909590681,0.5727651,94391.0,94390.0,0.1533]
[1739909591272,0.5727651,94391.0,94390.0,0.16417167]
[1739909592086,0.5727651,94391.0,94390.0,0.16517167]
[1739909593876,0.3608,94391.0,94390.0,0.16517167]
[1739909595175,0.3608,94391.0,94390.0,0.37713897]
[1739909596173,0.0787,94396.0,94390.0,0.16517167]
[1739909596379,0.1,94400.0,94391.0,0.4358]
[1739909596591,0.1,94400.0,94399.0,0.2119471]
[1739909598181,0.3608,94405.0,94399.0,0.001]
[1739909598386,0.0529634,94441.0,94413.0,0.2119157]
[1739909598387,0.0753,94414.0,94413.0,0.2119157]
[1739909599878,0.2119157,94413.0,94411.0,0.3608]
[1739909600275,0.08495164,94423.0,94411.0,0.3608]
[1739909600276,0.219,94439.0,94411.0,0.3608]
[1739909600489,0.0748,94432.0,94424.0,0.2118901]
[1739909600782,0.0748,94432.0,94425.0,0.2264]
[1739909601188,0.211879,94430.0,94425.0,0.2264]
[1739909601378,0.2118828,94428.0,94425.0,0.2264]
[1739909601785,0.2118858,94427.0,94425.0,0.2264]
[1739909602180,0.2118888,94425.0,94424.0,0.001]
[1739909602777,0.2913888,94425.0,94424.0,0.001]
[1739909603182,0.2119049,94418.0,94412.0,0.18838671]
[1739909603381,0.2119151,94414.0,94412.0,0.18838671]
[1739909603687,0.2109151,94414.0,94412.0,0.18838671]
[1739909603888,0.075,94413.0,94412.0,0.18838671]
[1739909604492,0.0729,94417.0,94412.0,0.18838671]
[1739909604687,0.075,94431.0,94412.0,0.26158671]
[1739909604883,0.1452,94437.0,94422.0,0.3608]
[1739909605087,0.2118778,94430.0,94423.0,0.1518]
[1739909605287,0.1452,94437.0,94423.0,0.1518]
[1739909605487,0.0729,94437.0,94427.0,0.2118832]
[1739909605686,0.0729,94437.0,94428.0,0.0721]
[1739909605887,0.2118697,94434.0,94428.0,0.0721]
[1739909606795,0.2118749,94432.0,94428.0,0.0721]
[1739909606999,0.1452,94437.0,94428.0,0.0721]
[1739909607191,0.003,94434.0,94430.0,0.2118762]
[1739909607698,0.2847638,94437.0,94430.0,0.2118762]
[1739909607890,0.003,94434.0,94430.0,0.2118762]
[1739909608291,0.2847638,94437.0,94430.0,0.2118762]
[1739909608502,0.003,94434.0,94428.0,0.0721]
[1739909608697,0.0723,94447.0,94439.0,0.2118561]
[1739909608899,0.0764,94446.0,94440.0,0.1541]
[1739909609099,0.2882425,94446.0,94440.0,0.1541]
[1739909609398,0.2118446,94445.0,94440.0,0.1541]
[1739909609585,0.2118465,94444.0,94440.0,0.1541]
[1739909610296,0.2118489,94443.0,94440.0,0.1541]
[1739909610496,0.2118489,94443.0,94440.0,0.1551]
[1739909610695,0.2118518,94442.0,94440.0,0.16583915]
[1739909612495,0.0764,94446.0,94440.0,0.16583915]
[1739909612690,0.0764,94446.0,94445.0,0.3608]
[1739909612891,0.3608,94465.0,94445.0,0.3608]
[1739909613103,0.0717,94464.0,94455.0,0.1293254]
[1739909613296,0.0717,94464.0,94462.0,0.211805]
[1739909613497,0.0717,94464.0,94456.0,0.2273]
[1739909613702,0.2118103,94460.0,94457.0,0.2118164]
[1739909614200,0.0717,94464.0,94456.0,0.2273]
[1739909614403,0.2118167,94458.0,94456.0,0.2273]
[1739909614793,0.2118167,94458.0,94456.0,0.2283]
[1739909615100,0.2118167,94458.0,94456.0,0.1499]
[1739909615896,0.2118167,94458.0,94456.0,0.001]
[1739909616104,0.3608,94459.0,94453.0,0.92492]
[1739909616293,0.2118237,94454.0,94453.0,0.92344]
[1739909616602,0.2118394,94447.0,94446.0,0.00015885]
[1739909616995,0.0733,94457.0,94446.0,0.00015885]
[1739909617195,0.0733,94457.0,94453.0,0.001]
[1739909618293,0.2118372,94448.0,94447.0,0.075]
[1739909620396,0.211825,94454.0,94447.0,0.2868394]
[1739909620600,0.3608,94459.0,94447.0,0.076]
[1739909620799,0.4362,94469.0,94456.0,0.2118176]
[1739909621098,0.4362,94469.0,94457.0,0.1483]
[1739909621296,0.2118147,94458.0,94457.0,0.1483]
[1739909623908,0.2118147,94458.0,94457.0,0.1493]
[1739909624700,0.2118147,94458.0,94457.0,0.001]
[1739909626905,0.2118394,94447.0,94446.0,0.00015885]
[1739909627109,0.2118394,94447.0,94441.0,0.18838671]
[1739909627110,0.2118506,94442.0,94441.0,0.18838671]
[1739909627411,0.5726506,94442.0,94441.0,0.18838671]
[1739909628508,0.5726506,94442.0,94441.0,0.18938671]
[1739909629212,0.5726506,94442.0,94441.0,0.001]
[1739909629601,0.2118506,94442.0,94441.0,0.001]
[1739909629797,0.00015795,94451.0,94441.0,0.3618]
[1739909630008,0.00015795,94451.0,94448.0,0.2118365]
[1739909630202,0.00015795,94451.0,94449.0,0.1428]
[1739909630399,0.00015795,94451.0,94450.0,0.2118327]
[1739909631212,0.00115795,94451.0,94450.0,0.2118327]
[1739909631604,0.00015795,94451.0,94450.0,0.2118327]
[1739909631806,0.00115795,94451.0,94450.0,0.2118327]
[1739909632916,0.00115795,94451.0,94450.0,0.5726327]
[1739909633212,0.2117926,94468.0,94450.0,0.3608]
[1739909633422,0.1485,94471.0,94460.0,0.3608]
[1739909633916,0.2118017,94464.0,94460.0,0.3608]
[1739909634711,0.3608,94486.0,94460.0,0.37152817]
[1739909634913,0.2117984,94466.0,94460.0,0.58433787]
[1739909635111,0.2118042,94463.0,94460.0,0.37252817]
[1739909635307,0.0744,94478.0,94460.0,0.37252817]
[1739909635915,0.2118035,94463.0,94462.0,0.18739184]
[1739909637918,0.2118035,94463.0,94462.0,0.18732975]
[1739909639307,0.3608,94474.0,94460.0,0.37152817]
[1739909639614,0.2117835,94472.0,94462.0,0.2118052]
[1739909640021,0.2117835,94472.0,94463.0,0.0698]
[1739909640422,0.211786,94471.0,94467.0,0.2117944]
[1739909640607,0.211786,94471.0,94464.0,0.0726]
[1739909640813,0.211786,94471.0,94468.0,0.2117921]
[1739909642423,0.211786,94471.0,94469.0,0.2117895]
[1739909643713,0.211786,94471.0,94469.0,0.2127895]
[1739909644218,0.5725791,94474.0,94469.0,0.2127895]
[1739909644623,0.2117878,94470.0,94469.0,0.001]
[1739909645815,0.3608,94474.0,94469.0,0.001]
[1739909646018,0.146,94470.0,94469.0,0.001]
[1739909646218,0.3577878,94470.0,94469.0,0.001]
[1739909646519,0.3608,94474.0,94469.0,0.001]
[1739909646721,0.5725796,94474.0,94470.0,0.2117858]
[1739909646918,0.3608,94474.0,94473.0,0.2117811]
[1739909647222,0.0744,94478.0,94473.0,0.2117811]
[1739909647423,0.2861707,94478.0,94473.0,0.2117811]
[1739909647622,0.0744,94478.0,94470.0,0.0758]
[1739909648324,0.0744,94478.0,94474.0,0.211777]
[1739909648524,0.0744,94478.0,94475.0,0.1422]
[1739909649229,0.2117731,94477.0,94475.0,0.3539753]
[1739909649519,0.2117731,94477.0,94475.0,0.3549753]
[1739909649927,0.0744,94478.0,94475.0,0.3549753]
[1739909650122,0.2117731,94477.0,94476.0,0.2117723]
[1739909650322,0.0744,94478.0,94476.0,0.2117723]
[1739909650323,0.0744,94478.0,94477.0,0.2117721]
[1739909650627,0.2117721,94477.0,94476.0,0.3608]
[1739909652226,0.3608,94494.0,94476.0,0.3618]
[1739909652427,0.1293254,94490.0,94478.0,0.2117684]
[1739909652731,0.2117663,94480.0,94478.0,0.2117684]
[1739909652931,0.11364289,94479.0,94478.0,0.2117684]
[1739909653122,0.11364289,94479.0,94478.0,0.22229827]
[1739909653323,0.18404289,94479.0,94478.0,0.22229827]
[1739909654028,0.39581049,94479.0,94478.0,0.22229827]
[1739909655625,0.18404289,94479.0,94478.0,0.22229827]
[1739909656134,0.11364289,94479.0,94478.0,0.22229827]
[1739909658829,0.0733,94489.0,94478.0,0.01052987]
[1739909659028,0.0733,94489.0,94476.0,0.36095876]
[1739909659029,0.0733,94489.0,94488.0,0.5725475]
[1739909659226,0.2850452,94489.0,94488.0,0.5725475]
[1739909660334,0.2850452,94489.0,94488.0,0.3608]
[1739909660530,0.2850452,94489.0,94488.0,0.3618]
[1739909663138,0.2850452,94489.0,94488.0,0.001]
[1739909666442,0.0733,94489.0,94488.0,0.001]
[1739909671842,0.2850452,94489.0,94488.0,0.001]
[1739909678946,0.0733,94489.0,94488.0,0.001]
[1739909679447,0.2850452,94489.0,94488.0,0.001]
[1739909681043,0.0733,94489.0,94488.0,0.001]
[1739909681245,0.1,94500.0,94488.0,0.001]
[1739909681444,0.2117285,94497.0,94493.0,0.2117342]
[1739909681644,0.2117303,94496.0,94493.0,0.2117342]
[1739909682051,0.0751,94499.0,94494.0,0.211734]
[1739909682247,0.2117271,94498.0,94494.0,0.211734]
[1739909682447,0.0751,94499.0,94494.0,0.211734]
[1739909683341,0.0751,94499.0,94494.0,0.22217036]
[1739909683551,0.0751,94499.0,94495.0,0.2117313]
[1739909684347,0.0751,94499.0,94494.0,0.01143636]
[1739909684549,0.0751,94499.0,94498.0,0.2117251]
[1739909685758,0.0751,94499.0,94498.0,0.2127251]
[1739909686157,0.1,94500.0,94498.0,0.2127251]
[1739909686158,0.1,94500.0,94499.0,0.2117228]
[1739909686355,0.1,94500.0,94499.0,0.4243228]
[1739909688161,0.1,94500.0,94499.0,0.4253228]
[1739909688750,0.0761,94514.0,94499.0,0.5734]
[1739909688953,0.075,94513.0,94509.0,0.2116987]
[1739909689157,0.211692,94513.0,94510.0,0.0761]
[1739909689554,0.2116937,94512.0,94511.0,0.1491]
[1739909690562,0.2117068,94507.0,94501.0,0.2117182]
[1739909690755,0.0759,94506.0,94503.0,0.2117138]
[1739909691154,0.0759,94506.0,94505.0,0.2117094]
[1739909691762,0.00158787,94516.0,94501.0,0.0731]
[1739909691763,0.00158787,94516.0,94511.0,0.211695]
[1739909691957,0.3608,94530.0,94512.0,0.2225]
[1739909692262,0.3608,94530.0,94517.0,0.2116818]
[1739909692263,0.1523,94529.0,94517.0,0.2116818]
[1739909692562,0.2116767,94520.0,94517.0,0.2116818]
[1739909692762,0.2116791,94519.0,94517.0,0.2116818]
[1739909694360,0.2116791,94519.0,94517.0,0.2126818]
[1739909694759,0.2116803,94518.0,94517.0,0.2126818]
[1739909695262,0.2116803,94518.0,94517.0,0.22353914]
[1739909695451,0.2116803,94518.0,94517.0,0.01185734]
[1739909696961,0.2116803,94518.0,94517.0,0.001]
[1739909697162,0.2116803,94518.0,94509.0,0.3608]
[1739909697163,0.2117251,94498.0,94497.0,0.00015876]
[1739909697454,0.1293254,94507.0,94497.0,0.00015876]
[1739909697655,0.2117251,94498.0,94497.0,0.00015876]
[1739909698261,0.2117251,94498.0,94497.0,0.00215876]
[1739909698458,0.2117251,94498.0,94497.0,0.01285688]
[1739909698665,0.2117251,94498.0,94497.0,0.00015876]
[1739909699361,0.2117251,94498.0,94497.0,0.01072769]
[1739909701855,0.0726,94505.0,94497.0,0.01072769]
[1739909702063,0.4901254,94520.0,94509.0,0.2117004]
[1739909702369,0.0703,94519.0,94510.0,0.22]
[1739909702562,0.2116959,94511.0,94510.0,0.22]
[1739909702766,0.0703,94519.0,94501.0,0.3608]
[1739909703063,0.2117083,94506.0,94502.0,0.2247]
[1739909704068,0.2117139,94503.0,94502.0,0.1485]
[1739909704458,0.1475,94505.0,94501.0,0.3608]
[1739909704660,0.2117251,94498.0,94497.0,0.01072769]
[1739909708368,0.2117251,94498.0,94497.0,0.00015876]
[1739909708963,0.0108512,94498.0,94484.0,0.9226]
[1739909709198,0.0108512,94498.0,94471.0,0.3608]
[1739909709199,0.2117676,94479.0,94478.0,0.01245674]
[1739909709367,0.2117676,94479.0,94478.0,0.00158738]
[1739909709368,0.5725676,94479.0,94478.0,0.00158738]
[1739909709575,0.2117856,94471.0,94462.0,0.92264]
[1739909709762,0.5725856,94471.0,94462.0,0.9242]
[1739909709959,0.5725856,94471.0,94464.0,0.01052445]
[1739909710374,0.3608,94471.0,94462.0,0.31397785]
[1739909710672,0.5726035,94463.0,94462.0,0.31397785]
[1739909711071,0.5726035,94463.0,94462.0,0.32477139]
[1739909711971,0.5726035,94463.0,94462.0,0.31397785]
[1739909713579,0.5726035,94463.0,94461.0,0.00015876]
[1739909713769,0.0703,94462.0,94461.0,0.00015876]
[1739909714462,0.08087464,94462.0,94461.0,0.00015876]
[1739909714670,0.2118529,94441.0,94440.0,0.1527]
[1739909715263,0.2118529,94441.0,94440.0,0.0762]
[1739909715569,0.2118798,94429.0,94420.0,0.0754]
[1739909715771,0.2118798,94429.0,94420.0,0.2213]
[1739909716577,0.2118977,94421.0,94420.0,0.2213]
[1739909717083,0.2118849,94427.0,94420.0,0.2213]
[1739909717378,0.2118893,94425.0,94420.0,0.2213]
[1739909717578,0.2118913,94424.0,94420.0,0.2213]
[1739909717884,0.001,94421.0,94420.0,0.2213]
[1739909718471,0.2118913,94424.0,94420.0,0.2213]
[1739909719172,0.001,94421.0,94420.0,0.2213]
[1739909719371,0.2128977,94421.0,94420.0,0.2213]
[1739909720369,0.2128977,94421.0,94420.0,0.1459]
[1739909720576,0.2118977,94421.0,94420.0,0.1459]
[1739909721073,0.001,94424.0,94420.0,0.1459]
[1739909721280,0.001,94421.0,94420.0,0.3577996]
[1739909722280,0.11212,94423.0,94420.0,0.3577996]
[1739909722678,0.2119,94420.0,94419.0,0.00015885]
[1739909723375,0.3608,94421.0,94419.0,0.00015885]
[1739909723778,0.2119,94420.0,94419.0,0.00015885]
[1739909724679,0.00015885,94430.0,94419.0,0.36095885]
[1739909724881,0.00015885,94430.0,94429.0,0.5726798]
[1739909725075,0.1293254,94440.0,94436.0,0.2118633]
[1739909725274,0.2118453,94445.0,94437.0,0.1466]
[1739909725479,0.1293254,94446.0,94437.0,0.1466]
[1739909725982,0.2118548,94441.0,94437.0,0.1466]
[1739909726382,0.0104274,94445.0,94437.0,0.1466]
[1739909726682,0.2118596,94438.0,94437.0,0.1466]
[1739909727481,0.2118596,94438.0,94437.0,0.0726]
[1739909728073,0.2148596,94438.0,94437.0,0.0726]
[1739909728280,0.003,94438.0,94437.0,0.4334]
[1739909728478,0.36238868,94450.0,94437.0,0.4334]
[1739909728681,0.36238868,94450.0,94443.0,0.211847]
[1739909728978,0.2118396,94447.0,94438.0,0.0753]
[1739909729178,0.2118396,94447.0,94438.0,0.2871589]
[1739909729374,0.2118396,94447.0,94438.0,0.0753]
[1739909729588,0.2118396,94447.0,94439.0,0.211857]
[1739909730196,0.2118396,94447.0,94438.0,0.0753]
[1739909730490,0.2138396,94447.0,94441.0,0.211852]
[1739909731081,0.002,94447.0,94438.0,0.0753]
[1739909731279,0.002,94447.0,94446.0,0.3608]
[1739909731483,0.00158868,94450.0,94448.0,0.2118365]
[1739909731788,0.00158868,94450.0,94449.0,0.0764]
[1739909733690,0.00358868,94450.0,94449.0,0.0764]
[1739909735190,0.2118529,94441.0,94440.0,0.00015885]
[1739909735594,0.5726411,94447.0,94440.0,0.00015885]
[1739909735980,0.3608,94447.0,94441.0,0.2118529]
[1739909736395,0.3608,94447.0,94440.0,0.00015885]
[1739909736791,0.5726395,94447.0,94440.0,0.00015885]
[1739909737089,0.3618,94447.0,94440.0,0.00015885]
[1739909737296,0.2118447,94445.0,94440.0,0.00015885]
[1739909737487,0.2118485,94443.0,94440.0,0.00015885]
[1739909737690,0.2118529,94441.0,94440.0,0.00015885]
[1739909738694,0.22238722,94441.0,94440.0,0.00015885]
[1739909739089,0.0529688,94431.0,94409.0,1.284]
[1739909739294,0.2119142,94414.0,94410.0,0.1473]
[1739909739597,0.2119148,94414.0,94410.0,0.1473]
[1739909739799,0.2119148,94414.0,94413.0,0.31397785]
[1739909740496,0.1293254,94420.0,94413.0,0.31397785]
[1739909740497,0.3412258,94420.0,94413.0,0.31397785]
[1739909741197,0.00015885,94423.0,94413.0,0.31597785]
[1739909741898,0.2119062,94418.0,94413.0,0.31597785]
[1739909742089,0.2119072,94417.0,94413.0,0.31597785]
[1739909743197,0.2119072,94417.0,94411.0,0.0765]
[1739909743498,0.2119072,94417.0,94413.0,0.002]
[1739909744099,0.12948425,94423.0,94413.0,0.002]
[1739909744393,0.00015885,94423.0,94421.0,0.211897]
[1739909745195,0.1465,94449.0,94420.0,0.3608]
[1739909745501,0.2118719,94433.0,94431.0,0.3608]
[1739909745903,0.2118719,94433.0,94432.0,0.0738]
[1739909746288,0.2118719,94433.0,94432.0,0.1436]
[1739909746495,0.00015869,94442.0,94432.0,0.355473]
[1739909746703,0.002,94433.0,94432.0,0.355473]
[1739909747096,0.002,94433.0,94432.0,0.1436]
[1739909748002,0.04633652,94434.0,94432.0,0.1436]
[1739909748199,0.12948409,94442.0,94432.0,0.1436]
[1739909748407,0.12948409,94442.0,94433.0,0.07]
[1739909748408,0.2118686,94434.0,94433.0,0.07]
[1739909748602,0.12948409,94442.0,94431.0,0.3608]
[1739909748795,0.2118807,94429.0,94423.0,0.00015885]
[1739909749601,0.1293254,94433.0,94423.0,0.00015885]
[1739909749795,0.1401936,94433.0,94423.0,0.00015885]
[1739909750002,0.001,94429.0,94423.0,0.00015885]
[1739909750201,0.211891,94424.0,94423.0,0.00015885]
[1739909751202,0.36236001,94429.0,94423.0,0.00015885]
[1739909751398,0.001,94429.0,94423.0,0.00015885]
[1739909752006,0.2118821,94428.0,94423.0,0.00015885]
[1739909752997,0.2118843,94427.0,94423.0,0.00015885]
[1739909753511,0.2118889,94425.0,94423.0,0.00015885]
[1739909753900,0.211891,94424.0,94423.0,0.00015885]
[1739909756809,0.211891,94424.0,94423.0,0.21205205]
[1739909760317,0.1293254,94433.0,94423.0,0.00015885]
[1739909760507,0.2118888,94425.0,94424.0,0.2835898]
[1739909761413,0.2118772,94431.0,94429.0,0.2118797]
[1739909761602,0.2118772,94431.0,94430.0,0.0702]
[1739909761807,0.2118888,94425.0,94424.0,0.0717]
[1739909762008,0.2119179,94412.0,94409.0,0.92436]
[1739909762212,0.58320677,94412.0,94409.0,0.92436]
[1739909762420,0.22240677,94412.0,94409.0,0.92436]
[1739909763210,0.2119202,94411.0,94410.0,0.18715095]
[1739909763416,0.2089202,94411.0,94410.0,0.18715095]
[1739909764018,0.01081309,94414.0,94410.0,0.18715095]
[1739909764207,0.0712,94416.0,94410.0,0.18715095]
[1739909764406,0.2119087,94417.0,94410.0,0.18715095]
[1739909764604,0.1462,94424.0,94416.0,0.3608]
[1739909764807,0.00015885,94421.0,94416.0,0.3608]
[1739909765018,0.00015885,94421.0,94420.0,0.2119]
[1739909766113,0.00015885,94421.0,94420.0,0.22234821]
[1739909766414,0.2118616,94438.0,94432.0,0.2118728]
[1739909766614,0.00056001,94445.0,94433.0,0.0739]
[1739909766811,0.2118666,94435.0,94433.0,0.0844645]
[1739909767313,0.01068078,94441.0,94433.0,0.0739]
[1739909767509,0.2118686,94434.0,94433.0,0.0739]
[1739909769239,0.003,94435.0,94429.0,0.3608]
[1739909769412,0.003,94435.0,94430.0,0.0707]
[1739909769613,0.2118753,94431.0,94430.0,0.1409]
[1739909769809,0.2118753,94431.0,94430.0,0.0702]
[1739909770014,0.2118775,94430.0,94429.0,0.3608]
[1739909771313,0.003,94430.0,94429.0,0.3608]
[1739909771509,0.003,94430.0,94429.0,0.5726798]
[1739909772510,0.003,94430.0,94429.0,0.3608]
[1739909773219,0.2118755,94431.0,94429.0,0.3608]
[1739909773419,0.2118755,94431.0,94430.0,0.0712]
[1739909774118,0.2118755,94431.0,94430.0,0.08177435]
[1739909774520,0.2118755,94431.0,94430.0,0.0712]
[1739909774722,0.2118775,94430.0,94429.0,0.3608]
[1739909774910,0.2882775,94430.0,94429.0,0.3608]
[1739909776416,0.3585775,94430.0,94429.0,0.3608]
[1739909776617,0.3615775,94430.0,94429.0,0.3608]
[1739909777122,0.2912775,94430.0,94429.0,0.3608]
[1739909779019,0.2148775,94430.0,94429.0,0.3608]
[1739909781512,0.22546541,94430.0,94429.0,0.3608]
[1739909782423,0.2118798,94429.0,94428.0,0.00015885]
[1739909782615,0.2856798,94429.0,94428.0,0.00015885]
[1739909782918,0.2856798,94429.0,94411.0,0.2195]
[1739909782919,0.2119157,94413.0,94412.0,0.0721]
[1739909783114,0.5727157,94413.0,94412.0,0.0721]
[1739909783425,0.3608,94413.0,94408.0,0.0751]
[1739909783624,0.2119202,94411.0,94405.0,0.0721]
[1739909784120,0.2119202,94411.0,94401.0,0.00015885]
[1739909784424,0.2119336,94405.0,94401.0,0.00015885]
[1739909784725,0.2119404,94402.0,94401.0,0.00015885]
[1739909785920,0.2089404,94402.0,94401.0,0.00015885]
[1739909786425,0.2119404,94402.0,94401.0,0.00015885]
[1739909788020,0.2119426,94401.0,94391.0,0.0721]
[1739909788924,0.2119628,94392.0,94391.0,0.0721]
[1739909789119,0.2119628,94392.0,94391.0,0.07225885]
[1739909790126,0.2129628,94392.0,94391.0,0.07225885]
[1739909791623,0.22340989,94392.0,94391.0,0.07225885]
[1739909791827,0.01144709,94392.0,94367.0,0.00104]
[1739909792124,0.2119988,94376.0,94372.0,0.0704]
[1739909793222,0.2119988,94376.0,94375.0,0.004]
[1739909793926,0.2119988,94376.0,94366.0,0.00015894]
[1739909793927,0.212019,94367.0,94366.0,0.00015894]
[1739909794127,0.2120107,94371.0,94366.0,0.00015894]
[1739909794327,0.212019,94367.0,94366.0,0.00015894]
[1739909794527,0.1400584,94376.0,94366.0,0.00015894]
[1739909794925,0.12948434,94376.0,94366.0,0.00015894]
[1739909795231,0.210019,94367.0,94366.0,0.00015894]
[1739909806145,0.427419,94367.0,94366.0,1e-08]
[1739909808737,0.428419,94367.0,94366.0,1e-08]
[1739909817548,0.284519,94367.0,94366.0,1e-08]
[1739909817742,0.211019,94367.0,94366.0,1e-08]
[1739909819034,0.00075895,94376.0,94366.0,0.36080001]
[1739909819246,0.00064,94387.0,94377.0,0.2119957]
[1739909819439,0.2119808,94384.0,94383.0,0.3608]
[1739909819636,0.211992,94379.0,94378.0,0.1463]
[1739909820340,0.2119819,94384.0,94378.0,0.1463]
[1739909820737,0.2119835,94383.0,94378.0,0.1463]
[1739909820947,0.00015894,94388.0,94378.0,0.1463]
[1739909821147,0.00015894,94388.0,94386.0,0.3608]
[1739909821343,0.00015894,94388.0,94378.0,0.15670479]
[1739909821542,0.211992,94379.0,94378.0,0.1463]
[1739909822136,0.2119812,94384.0,94378.0,0.1463]
[1739909822336,0.2119852,94383.0,94378.0,0.1463]
[1739909822648,0.13348434,94388.0,94379.0,0.075]
[1739909822947,0.00415894,94388.0,94385.0,0.3608]
[1739909823540,0.2119763,94386.0,94385.0,0.3608]
[1739909825748,0.2109898,94380.0,94379.0,0.075]
[1739909826449,0.007,94386.0,94379.0,0.075]
[1739909826750,0.2119749,94387.0,94383.0,0.3608]
[1739909827441,0.00015894,94388.0,94383.0,0.3608]
[1739909827643,0.2119808,94384.0,94383.0,0.3608]
[1739909829543,0.2119808,94384.0,94383.0,0.572783]
[1739909829743,0.003,94387.0,94383.0,0.572783]
[1739909829945,0.003,94384.0,94383.0,0.572783]
[1739909830850,0.211979,94385.0,94383.0,0.572783]
[1739909831056,0.2119808,94384.0,94383.0,0.572783]
[1739909832445,0.2149808,94384.0,94383.0,0.3608]
[1739909832656,0.2119898,94380.0,94379.0,0.075]
[1739909832852,0.212019,94367.0,94358.0,0.92496]
[1739909833046,0.212019,94367.0,94359.0,0.1433]
[1739909833352,0.36136001,94375.0,94359.0,0.1433]
[1739909833655,0.212019,94367.0,94359.0,0.1433]
[1739909834039,0.212019,94367.0,94362.0,0.3608]
[1739909834344,0.212019,94367.0,94363.0,0.0682]
[1739909834751,0.212019,94367.0,94366.0,0.00200001]